bitfinex/quotes_SOLUSD_20241210
["timestamp","ask_amount","ask_price","bid_price","bid_amount"]
[1733855898870,7.46644951,210.55,210.43,23.84481149]
[1733855899071,0.42553191,210.54,210.47,23.84481149]
[1733855899388,0.42553191,210.54,210.48,0.71237043]
[1733855900309,0.42553191,210.54,210.46,0.71244763]
[1733855901369,1.13758142,210.54,210.44,0.71245051]
[1733855901595,1.13758142,210.54,210.39,31.15618497]
[1733855901775,0.42553191,210.54,210.42,23.84481149]
[1733855902091,0.42553191,210.54,210.47,23.84481149]
[1733855902328,0.42553191,210.54,210.48,0.7123047]
[1733855903084,0.42553191,210.54,210.45,20.0]
[1733855903272,0.42553191,210.54,210.46,0.71247946]
[1733855903686,0.42553191,210.54,210.39,11.8826]
[1733855903687,1.13758142,210.54,210.41,24.55729136]
[1733855903994,1.13758142,210.54,210.41,0.71247987]
[1733855904203,1.13758142,210.54,210.38,3.57943229]
[1733855906192,0.42553191,210.54,210.42,23.84481149]
[1733855906402,0.42553191,210.54,210.44,23.84481149]
[1733855906571,0.42553191,210.54,210.45,0.71244194]
[1733855906772,1.13758142,210.54,210.45,0.71244194]
[1733855907001,1.13758142,210.54,210.39,0.71253161]
[1733855909508,4.41879,210.52,210.36,0.71265409]
[1733855909718,4.41879,210.52,210.29,23.84481149]
[1733855909719,20.0,210.48,210.29,23.84481149]
[1733855909872,22.81024951,210.51,210.29,23.84481149]
[1733855909873,20.71204951,210.47,210.29,23.84481149]
[1733855910075,0.42553191,210.46,210.29,23.84481149]
[1733855910310,7.0982,210.44,210.29,23.84481149]
[1733855910487,0.71204951,210.43,210.29,23.84481149]
[1733855910688,4.2933,210.42,210.29,23.84481149]
[1733855910922,4.2933,210.42,210.33,23.84481149]
[1733855911090,0.42553191,210.41,210.34,0.71283262]
[1733855911480,0.42553191,210.41,210.35,23.84481149]
[1733855911905,0.42553191,210.41,210.34,24.55764411]
[1733855912488,0.42553191,210.41,210.36,23.84481149]
[1733855912686,0.42553191,210.41,210.38,23.84481149]
[1733855912915,0.42553191,210.41,210.39,0.71266061]
[1733855913195,0.42553191,210.41,210.4,23.84481149]
[1733855913405,7.0982,210.49,210.4,23.84481149]
[1733855913607,7.0982,210.49,210.34,22.31137348]
[1733855913608,7.0982,210.49,210.41,0.71257423]
[1733855913915,7.0982,210.49,210.38,24.55751476]
[1733855914084,7.0982,210.49,210.41,0.25098]
[1733855914289,7.0982,210.49,210.42,24.55731538]
[1733855914609,7.0982,210.49,210.4,23.84481149]
[1733855915178,7.0982,210.49,210.41,0.71260744]
[1733855915987,7.0982,210.49,210.38,23.84481149]
[1733855916210,7.0982,210.49,210.4,23.84481149]
[1733855916415,0.71204951,210.48,210.36,23.84481149]
[1733855916602,7.0982,210.49,210.37,0.71273905]
[1733855917208,0.71204951,210.48,210.37,0.71273905]
[1733855917417,0.71204951,210.48,210.35,0.71274151]
[1733855918499,0.71204951,210.48,210.28,15.0]
[1733855918500,0.71204951,210.48,210.32,23.84481149]
[1733855918813,20.0,210.44,210.28,23.84481149]
[1733855919120,20.0,210.44,210.26,23.84481149]
[1733855919121,0.71204951,210.43,210.26,23.84481149]
[1733855919417,0.71204951,210.43,210.27,0.71303605]
[1733855920087,27.867784,210.47,210.27,0.71303605]
[1733855920088,0.71204951,210.46,210.32,23.84481149]
[1733855920296,0.71204951,210.46,210.33,24.55766106]
[1733855920704,0.71204951,210.46,210.33,0.71284957]
[1733855922619,0.71204951,210.46,210.3,0.71285484]
[1733855922926,6.9084,210.44,210.26,26.72266294]
[1733855923099,6.9084,210.44,210.27,24.5578397]
[1733855923100,0.71204951,210.43,210.27,24.5578397]
[1733855923293,0.71204951,210.43,210.27,0.71302821]
[1733855923522,4.3867,210.38,210.22,0.71313864]
[1733855923704,6.9084,210.36,210.22,0.71313864]
[1733855924028,20.0,210.33,210.16,24.34481149]
[1733855924237,20.0,210.31,210.16,0.5]
[1733855924399,11.2951,210.29,210.16,0.5]
[1733855924600,0.71204951,210.28,210.16,1.21357451]
[1733855924915,0.71204951,210.28,210.16,0.5]
[1733855927325,11.2951,210.29,210.19,23.84481149]
[1733855927617,6.9084,210.29,210.21,23.84481149]
[1733855927800,6.9084,210.29,210.2,24.55813994]
[1733855927996,6.9084,210.29,210.2,0.71332845]
[1733855928617,0.71204951,210.28,210.16,0.5]
[1733855930533,6.9084,210.29,210.18,23.84481149]
[1733855930728,6.9084,210.29,210.17,0.71349435]
[1733855930729,6.9084,210.29,210.17,24.55830584]
[1733855930931,0.42553192,210.28,210.17,24.55830584]
[1733855931098,1.13758143,210.28,210.17,0.71349435]
[1733855931300,1.13758143,210.28,210.16,0.5]
[1733855933313,0.42553192,210.28,210.2,23.84481149]
[1733855933507,6.9084,210.29,210.21,24.55808572]
[1733855933706,6.9084,210.29,210.21,0.71327423]
[1733855934609,6.9084,210.29,210.18,0.71334725]
[1733855935140,0.71204951,210.28,210.16,0.5]
[1733855936951,4.3867,210.27,210.16,0.5]
[1733855937144,20.0,210.24,210.16,0.5]
[1733855937447,6.9084,210.22,210.16,0.5]
[1733855937746,0.71204951,210.21,210.16,0.5]
[1733855937944,6.9084,210.22,210.16,0.5]
[1733855938523,6.9084,210.22,210.17,0.7135067]
[1733855938945,6.9084,210.22,210.16,0.5]
[1733855939149,4.3867,210.27,210.16,0.5]
[1733855939619,0.71204951,210.26,210.16,0.5]
[1733855940526,0.71204951,210.31,210.19,23.84481149]
[1733855940824,4.1488,210.32,210.19,23.84481149]
[1733855940825,4.1488,210.32,210.2,0.71331358]
[1733855941147,4.1488,210.32,210.21,23.84481149]
[1733855941641,4.1488,210.32,210.22,0.71328622]
[1733855942423,0.71204951,210.35,210.23,23.84481149]
[1733855942640,0.71204951,210.35,210.22,0.71328622]
[1733855944145,0.71204951,210.35,210.19,24.55810798]
[1733855944349,0.71204951,210.35,210.21,23.84481149]
[1733855944554,4.1488,210.37,210.26,23.84481149]
[1733855944747,6.8835,210.41,210.27,0.71300695]
[1733855944748,0.71204951,210.4,210.27,0.71300695]
[1733855944945,7.59554951,210.41,210.28,23.84481149]
[1733855945259,7.59554951,210.41,210.29,0.71299773]
[1733855945635,7.59554951,210.41,210.25,0.7130194]
[1733855947060,7.59554951,210.41,210.28,0.3573971]
[1733855947826,15.0,210.47,210.28,0.3573971]
[1733855947827,0.89127372,210.46,210.32,23.84481149]
[1733855948031,0.89104602,210.48,210.36,23.84481149]
[1733855948254,2.78153885,210.51,210.37,0.35678901]
[1733855948450,0.89092896,210.51,210.37,0.35678901]
[1733855948652,6.8835,210.52,210.4,23.84481149]
[1733855948923,6.8835,210.52,210.41,0.35640283]
[1733855949958,0.89072676,210.51,210.37,0.35638461]
[1733855950450,0.89072676,210.51,210.38,23.84481149]
[1733855950658,0.89072676,210.51,210.39,0.35657419]
[1733855951037,7.7743081,210.52,210.39,0.35657419]
[1733855951861,7.77423453,210.52,210.39,0.35657419]
[1733855952155,6.8835,210.52,210.39,0.35657419]
[1733855952364,7.77423932,210.59,210.44,23.84481149]
[1733855952529,7.77423932,210.59,210.45,0.35598378]
[1733855952930,6.8835,210.59,210.46,23.84481149]
[1733855953125,6.8835,210.59,210.48,23.84481149]
[1733855953348,6.8835,210.59,210.49,0.35576563]
[1733855953758,4.1488,210.61,210.5,23.84481149]
[1733855954067,7.86509021,210.65,210.52,23.84481149]
[1733855954251,6.9746,210.65,210.54,23.84481149]
[1733855954444,6.9746,210.65,210.55,0.35526011]
[1733855954645,0.89014922,210.64,210.55,0.35526011]
[1733855955062,0.89014922,210.64,210.53,0.35542324]
[1733855955359,7.8649166,210.65,210.53,0.35542324]
[1733855955773,6.9746,210.65,210.53,0.35542324]
[1733855955935,0.89019394,210.66,210.54,23.84481149]
[1733855956262,20.0,210.64,210.51,0.35523845]
[1733855956469,0.89041573,210.63,210.45,23.84481149]
[1733855956635,26.9746,210.61,210.43,31.04217405]
[1733855956837,6.9746,210.61,210.47,23.84481149]
[1733855957031,6.9746,210.61,210.48,0.35562182]
[1733855958056,6.9746,210.61,210.51,23.84481149]
[1733855958236,6.9746,210.61,210.52,0.35551039]
[1733855958436,0.89034537,210.66,210.52,0.35551039]
[1733855958652,0.89034537,210.66,210.53,23.84481149]
[1733855958857,0.89034537,210.66,210.54,0.35539821]
[1733855959264,0.89034537,210.66,210.52,0.35564824]
[1733855959777,0.89034537,210.66,210.53,23.84481149]
[1733855959975,0.89034537,210.66,210.54,0.35526076]
[1733855960672,11.2006,210.67,210.55,0.37647]
[1733855960673,6.9746,210.67,210.55,0.37647]
[1733855960879,6.9746,210.67,210.56,23.84481149]
[1733855961054,0.0968822,210.69,210.62,23.84481149]
[1733855961379,0.0968822,210.69,210.63,0.35461068]
[1733855961670,0.0968822,210.69,210.64,23.84481149]
[1733855961869,0.0968822,210.69,210.62,23.84481149]
[1733855962077,0.0968822,210.69,210.6,23.84481149]
[1733855962277,0.0968822,210.69,210.58,0.35449402]
[1733855962444,0.0968822,210.69,210.56,23.84481149]
[1733855962647,0.0968822,210.69,210.54,23.84481149]
[1733855963101,0.98712879,210.69,210.52,28.64623575]
[1733855963257,4.226,210.68,210.52,0.35542426]
[1733855963445,20.0,210.65,210.5,23.84481149]
[1733855963646,0.89037662,210.64,210.5,23.84481149]
[1733855963977,0.89037662,210.64,210.51,0.35556964]
[1733855964177,0.89026248,210.67,210.52,23.84481149]
[1733855964470,0.89026248,210.67,210.54,23.84481149]
[1733855964655,0.89026248,210.67,210.55,0.3551827]
[1733855965645,20.0,210.65,210.52,23.84481149]
[1733855965866,0.8903339,210.64,210.52,23.84481149]
[1733855966185,20.0,210.65,210.53,0.35550588]
[1733855966489,0.89015166,210.64,210.54,23.84481149]
[1733855966667,0.89015166,210.64,210.53,0.35550588]
[1733855966668,0.89015166,210.64,210.52,23.84481149]
[1733855966863,0.89031129,210.67,210.52,23.84481149]
[1733855967055,0.89031129,210.67,210.53,0.35548873]
[1733855968691,6.9085,210.66,210.5,23.84481149]
[1733855968854,0.89042004,210.65,210.5,23.84481149]
[1733855969272,0.89042004,210.65,210.52,23.84481149]
[1733855969581,0.89042004,210.65,210.53,0.35539905]
[1733855970491,6.9085,210.66,210.56,23.84481149]
[1733855970784,0.0968822,210.69,210.6,23.84481149]
[1733855970951,0.0968822,210.69,210.61,0.3548162]
[1733855971553,0.0968822,210.69,210.62,23.84481149]
[1733855971755,0.0968822,210.69,210.63,0.3545107]
[1733855971956,7.7984455,210.76,210.63,0.3545107]
[1733855972596,4.2698,210.79,210.66,23.84481149]
[1733855972896,4.2698,210.79,210.67,0.35414902]
[1733855973799,0.88960883,210.78,210.67,0.35414902]
[1733855973989,0.88960883,210.78,210.63,23.84481149]
[1733855974187,0.88960883,210.78,210.64,0.35439923]
[1733855975181,0.88960883,210.78,210.64,24.19921072]
[1733855975896,5.15949667,210.79,210.65,0.37647]
[1733855976095,5.15949667,210.79,210.66,24.19896675]
[1733855976802,5.15949667,210.79,210.66,336.19896675]
[1733855977006,0.88961276,210.78,210.64,23.84481149]
[1733855977304,0.88961276,210.78,210.64,24.1992362]
[1733855978373,0.88961276,210.78,210.6,23.84481149]
[1733855978601,6.9085,210.73,210.57,23.84481149]
[1733855978806,0.89004449,210.72,210.54,0.35502008]
[1733855978985,0.89004449,210.72,210.57,23.84481149]
[1733855979179,0.89004449,210.72,210.61,23.84481149]
[1733855979403,6.9085,210.73,210.63,23.84481149]
[1733855980403,6.9085,210.89,210.73,54.153354]
[1733855980709,6.9085,210.89,210.83,23.84481149]
[1733855980997,6.9085,210.89,210.84,0.35284154]
[1733855981213,0.5968822,210.9,210.84,0.35284154]
[1733855981619,0.5968822,210.9,210.83,23.84481149]
[1733855981802,0.5968822,210.9,210.8,0.3529626]
[1733855981803,0.5968822,210.9,210.81,23.84481149]
[1733855982296,0.88909803,210.89,210.79,23.84481149]
[1733855982701,0.88909803,210.89,210.77,23.84481149]
[1733855983014,0.88909803,210.89,210.73,6.81289]
[1733855983015,0.88909803,210.89,210.79,23.84481149]
[1733855983225,0.5968822,210.9,210.82,38.62656432]
[1733855984708,0.88918866,210.89,210.78,38.62656432]
[1733855984952,0.88918866,210.89,210.76,38.62656432]
[1733855985224,0.88918866,210.89,210.78,38.62656432]
[1733855986092,0.88918866,210.89,210.79,38.62656432]
[1733855986408,0.88918866,210.89,210.77,38.62656432]
[1733855988322,0.5968822,210.9,210.77,38.62656432]
[1733855988715,11.28118025,210.89,210.74,39.33797227]
[1733855989323,11.28118025,210.89,210.75,38.62656432]
[1733855989801,11.28118025,210.89,210.76,38.62656432]
[1733855990000,0.53588025,210.89,210.79,38.62656432]
[1733855990209,0.5968822,210.9,210.81,38.62656432]
[1733855990417,0.5968822,210.9,210.82,0.71127688]
[1733855990613,0.5968822,210.9,210.82,39.3378412]
[1733855990833,0.42553191,210.89,210.82,39.3378412]
[1733855991194,0.96141216,210.89,210.8,0.71125321]
[1733855991590,0.42553191,210.89,210.82,38.62656432]
[1733855991906,0.42553191,210.89,210.84,38.62656432]
[1733855992109,0.42553191,210.89,210.85,0.71115107]
[1733855992322,0.42553191,210.89,210.86,38.62656432]
[1733855992495,0.42553191,210.89,210.85,0.71115107]
[1733855994827,0.42553191,210.89,210.88,38.62656432]
[1733855994996,0.5968822,210.9,210.89,38.62656432]
[1733855996016,0.5968822,210.9,210.85,38.62656432]
[1733855996204,0.5968822,210.9,210.86,0.71107794]
[1733855997013,0.5968822,210.9,210.86,39.33764226]
[1733855997622,0.5968822,210.9,210.89,38.62656432]
[1733855997825,0.5968822,210.9,210.89,39.33749055]
[1733856000528,0.5968822,210.9,210.89,0.71092623]
[1733856001024,0.5968822,210.9,210.82,0.71101121]
[1733856001243,0.5968822,210.9,210.77,38.62656432]
[1733856001404,0.5968822,210.9,210.78,2.26267586]
[1733856001607,6.6782,210.89,210.79,39.33793204]
[1733856002031,6.6782,210.89,210.76,42.14941062]
[1733856002716,6.6782,210.89,210.78,38.62656432]
[1733856002906,6.6782,210.89,210.79,0.71129182]
[1733856003313,6.6782,210.89,210.76,0.71129783]
[1733856003314,0.53588025,210.88,210.76,0.71129783]
[1733856003534,0.53588025,210.88,210.74,0.71146461]
[1733856003900,20.0,210.86,210.72,0.71149917]
[1733856004108,20.53588025,210.85,210.72,0.71149917]
[1733856004803,20.0,210.86,210.74,38.62656432]
[1733856005008,0.53588025,210.85,210.75,0.71143582]
[1733856005339,20.0,210.86,210.71,23.79059777]
[1733856005505,20.53588025,210.85,210.72,0.71158084]
[1733856006318,20.53588025,210.85,210.73,23.79059777]
[1733856006319,0.53588025,210.85,210.73,23.79059777]
[1733856006523,0.53588025,210.85,210.74,0.71148912]
[1733856007635,0.53588025,210.85,210.72,0.71154618]
[1733856010834,0.53588025,210.88,210.76,23.79059777]
[1733856011037,7.21408025,210.89,210.79,23.79059777]
[1733856011250,6.6782,210.89,210.81,23.79059777]
[1733856011455,0.53588025,210.88,210.77,0.71126853]
[1733856011945,0.53588025,210.88,210.76,23.79059777]
[1733856011946,0.53588025,210.88,210.74,0.71139838]
[1733856012336,0.53588025,210.88,210.75,23.79059777]
[1733856012532,0.53588025,210.88,210.76,0.71141247]
[1733856012746,0.53588025,210.88,210.75,0.71143758]
[1733856012936,0.53588025,210.88,210.76,23.79059777]
[1733856013151,0.53588025,210.88,210.77,0.7113961]
[1733856013526,0.53588025,210.88,210.74,0.7114526]
[1733856014140,20.0,210.86,210.71,0.71153589]
[1733856014349,0.53588025,210.85,210.71,0.71153589]
[1733856015338,6.55,210.83,210.69,0.71159961]
[1733856015660,0.53588025,210.82,210.69,0.71159961]
[1733856016435,0.53588025,210.82,210.7,23.79059777]
[1733856016638,0.53588025,210.82,210.71,0.71160116]
[1733856017847,0.53588025,210.82,210.68,24.50229245]
[1733856018244,0.53588025,210.82,210.68,0.71169468]
[1733856018445,0.53588025,210.82,210.68,24.50229245]
[1733856018647,0.53588025,210.82,210.68,0.71169468]
[1733856019333,0.53588025,210.82,210.69,0.71172261]
[1733856019852,0.53588025,210.82,210.67,0.71172946]
[1733856019853,20.0,210.8,210.67,0.71172946]
[1733856020053,0.53588025,210.82,210.68,23.79059777]
[1733856020250,0.53588025,210.82,210.69,0.71165563]
[1733856020463,7.08588025,210.83,210.69,24.5022534]
[1733856021040,7.08588025,210.83,210.69,0.71165563]
[1733856021232,7.08588025,210.83,210.7,0.7116507]
[1733856021537,20.0,210.8,210.68,0.71166745]
[1733856021741,0.53588025,210.79,210.68,0.71166745]
[1733856022253,20.0,210.8,210.68,24.50226522]
[1733856022484,20.0,210.8,210.68,0.71166745]
[1733856022968,0.53588025,210.79,210.68,0.71166745]
[1733856023173,0.53588025,210.79,210.69,0.71173106]
[1733856023353,0.53588025,210.79,210.66,0.71173106]
[1733856024034,0.53588025,210.79,210.64,2.269159]
[1733856024035,20.0,210.75,210.63,9.63709079]
[1733856024254,10.7609,210.61,210.52,10.15452142]
[1733856024452,10.7609,210.61,210.42,7.36793179]
[1733856024453,20.0,210.58,210.42,7.36793179]
[1733856024667,10.7609,210.61,210.46,23.79059777]
[1733856024858,10.7609,210.61,210.48,23.79059777]
[1733856025170,0.53588025,210.6,210.49,0.7123211]
[1733856025464,0.53588025,210.6,210.43,17.52245322]
[1733856025465,0.53588025,210.6,210.46,0.71238774]
[1733856026341,0.53588025,210.6,210.44,0.71241738]
[1733856027638,0.53588025,210.6,210.45,0.71243726]
[1733856027834,20.0,210.58,210.45,0.71243726]
[1733856028041,0.53588025,210.57,210.45,0.71243726]
[1733856028356,0.53588025,210.57,210.38,6.4821]
[1733856028566,6.6735,210.56,210.33,17.90423179]
[1733856028856,20.0,210.51,210.33,1.58210978]
[1733856029058,0.53588025,210.5,210.33,0.86938212]
[1733856029368,20.0,210.49,210.33,0.86938212]
[1733856029666,0.53588025,210.48,210.33,0.86938212]
[1733856029879,0.53588025,210.48,210.33,25.37283674]
[1733856030051,0.53588025,210.5,210.33,25.37283674]
[1733856030247,0.53588025,210.5,210.34,0.25098]
[1733856030552,0.53588025,210.5,210.36,0.25098]
[1733856030737,0.53588025,210.5,210.37,0.7126795]
[1733856031163,0.53588025,210.52,210.37,0.7126795]
[1733856032567,0.53588025,210.52,210.33,0.86938212]
[1733856032859,20.0,210.51,210.33,0.71282767]
[1733856033061,0.53588025,210.5,210.33,3.51330876]
[1733856033360,23.9675,210.45,210.27,23.79059777]
[1733856033580,0.53588025,210.44,210.28,0.71298422]
[1733856034168,0.53588025,210.44,210.25,0.71305806]
[1733856034862,2.46839934,210.44,210.25,0.71305806]
[1733856035050,20.0,210.42,210.25,0.71305806]
[1733856035240,20.0,210.42,210.28,0.12549]
[1733856035443,0.53588025,210.44,210.28,48.40591688]
[1733856035648,20.0,210.44,210.3,23.91608777]
[1733856035855,3.9675,210.45,210.31,0.7128646]
[1733856036061,4.50338025,210.45,210.31,0.7128646]
[1733856036671,0.53588025,210.44,210.31,0.7128646]
[1733856037555,0.53588025,210.44,210.28,0.71293432]
[1733856037869,20.0,210.43,210.26,24.153354]
[1733856038060,0.53588025,210.42,210.26,24.027864]
[1733856038258,6.6735,210.41,210.27,0.71303389]
[1733856038464,6.6735,210.41,210.27,24.50363166]
[1733856038975,0.53588025,210.4,210.27,0.71303389]
[1733856039456,0.53588025,210.4,210.27,0.25098]
[1733856039652,0.53588025,210.4,210.26,0.71301952]
[1733856040058,0.53588025,210.4,210.26,24.50361729]
[1733856040267,0.53588025,210.4,210.26,0.71301952]
[1733856040752,0.53588025,210.4,210.23,23.79059777]
[1733856040947,0.53588025,210.4,210.24,0.71319205]
[1733856041648,20.0,210.38,210.24,0.71319205]
[1733856041973,20.0,210.38,210.21,23.79059777]
[1733856041974,24.50338025,210.37,210.19,24.50379935]
[1733856042158,24.50338025,210.37,210.19,0.71320158]
[1733856042346,20.0,210.33,210.16,25.10079695]
[1733856042551,0.53588025,210.32,210.16,1.31019918]
[1733856042761,3.9675,210.3,210.16,0.5968822]
[1733856042972,20.0,210.28,210.16,0.5968822]
[1733856043192,0.53588025,210.27,210.16,0.5968822]
[1733856043367,20.0,210.28,210.16,0.5968822]
[1733856046349,20.0,210.27,210.16,0.5968822]
[1733856046775,20.0,210.21,210.16,0.5968822]
[1733856049171,6.6735,210.24,210.16,0.5968822]
[1733856050786,20.0,210.21,210.16,0.5968822]
[1733856051180,0.42553192,210.2,210.16,0.5968822]
[1733856053471,6.6735,210.24,210.16,0.5968822]
[1733856053668,6.6735,210.29,210.17,0.71360575]
[1733856053876,6.6735,210.29,210.16,0.5968822]
[1733856054088,12.73353597,210.29,210.16,0.5968822]
[1733856054884,20.0,210.26,210.16,0.5968822]
[1733856056971,20.0,210.25,210.16,0.5968822]
[1733856057389,20.0,210.26,210.16,0.5968822]
[1733856058100,20.0,210.25,210.16,0.5968822]
[1733856058267,20.0,210.26,210.16,0.5968822]
[1733856058467,20.0,210.23,210.16,0.5968822]
[1733856060798,6.6735,210.29,210.16,0.5968822]
[1733856061706,6.06003597,210.31,210.18,0.12549]
[1733856061887,1.86867648,210.32,210.19,0.96432158]
[1733856062079,10.1599,210.36,210.19,0.96432158]
[1733856062586,10.1599,210.36,210.22,0.12549]
[1733856062915,2.73140723,210.37,210.24,0.12549]
[1733856063082,3.8502,210.42,210.3,24.04157777]
[1733856063283,6.3097,210.46,210.31,0.71295985]
[1733856063699,8.25233052,210.46,210.32,47.81846177]
[1733856063909,1.94263052,210.46,210.35,0.25098]
[1733856064076,6.06003597,210.51,210.37,0.25098]
[1733856064397,6.06003597,210.51,210.38,0.83823226]
[1733856064600,5.75532874,210.54,210.4,0.12549]
[1733856064788,1.90512874,210.54,210.4,0.83810075]
[1733856064988,6.06003597,210.57,210.42,0.12549]
[1733856065294,6.06003597,210.57,210.43,0.12549]
[1733856065483,7.96363403,210.63,210.49,24.16706777]
[1733856065684,6.3097,210.74,210.55,23.79059777]
[1733856065877,6.3097,210.74,210.56,0.37647]
[1733856065878,2.83776423,210.71,210.56,0.37647]
[1733856066103,2.83776423,210.71,210.56,0.83756658]
[1733856066306,8.22759736,210.74,210.56,0.83756658]
[1733856066485,13.07834524,210.74,210.56,0.83756658]
[1733856066798,4.85074788,210.73,210.56,0.83756658]
[1733856067373,4.85074788,210.73,210.51,30.0]
[1733856067374,2.83173504,210.72,210.52,23.776884]
[1733856067577,2.83173504,210.72,210.53,0.83768277]
[1733856067789,20.0,210.69,210.53,0.83768277]
[1733856068099,20.12549,210.68,210.47,23.79059777]
[1733856068410,15.0,210.69,210.49,23.79059777]
[1733856068411,20.0,210.66,210.49,23.79059777]
[1733856068576,20.0,210.66,210.51,23.79059777]
[1733856068769,2.83173504,210.72,210.45,30.0]
[1733856068770,2.83173504,210.72,210.53,24.04157777]
[1733856068974,2.83173504,210.72,210.56,23.79059777]
[1733856069198,2.83173504,210.72,210.57,0.71203805]
[1733856069395,8.22759736,210.74,210.57,0.71203805]
[1733856069595,8.22759736,210.74,210.59,0.12549]
[1733856069596,1.91789736,210.74,210.59,0.12549]
[1733856069797,15.0,210.79,210.58,23.79059777]
[1733856069985,2.81208005,210.75,210.58,0.12549]
[1733856070182,0.12549,210.74,210.55,0.12549]
[1733856070387,0.12549,210.74,210.52,23.79059777]
[1733856070388,15.12549,210.74,210.52,23.79059777]
[1733856070590,15.0,210.71,210.5,23.79059777]
[1733856070784,19.85074788,210.73,210.52,23.79059777]
[1733856071023,0.12549,210.71,210.5,23.79059777]
[1733856071183,23.776884,210.65,210.46,23.79059777]
[1733856071383,20.0,210.62,210.46,24.50297998]
[1733856071913,20.0,210.66,210.53,24.04157777]
[1733856072082,1.88886929,210.68,210.53,24.50274983]
[1733856072284,23.902374,210.72,210.53,0.71215206]
[1733856072492,23.902374,210.72,210.54,0.12549]
[1733856072990,0.12549,210.73,210.54,0.12549]
[1733856073177,0.12549,210.73,210.54,38.85567513]
[1733856073379,25.78444367,210.74,210.57,38.73018513]
[1733856073679,2.81208005,210.75,210.59,38.73018513]
[1733856073887,0.12549,210.74,210.55,62.50706913]
[1733856074103,0.12549,210.74,210.54,23.776884]
[1733856074301,0.12549,210.74,210.53,38.73018513]
[1733856074691,0.12549,210.74,210.56,0.25098]
[1733856074901,20.0,210.71,210.55,38.73018513]
[1733856075107,20.0,210.71,210.54,23.776884]
[1733856075682,20.0,210.71,210.55,38.98116513]
[1733856075883,20.0,210.71,210.55,39.69331366]
[1733856076081,20.0,210.7,210.53,38.73018513]
[1733856076703,20.0,210.7,210.52,24.027864]
[1733856076877,20.0,210.69,210.52,24.027864]
[1733856077080,20.0,210.7,210.51,39.44239075]
[1733856077311,20.0,210.66,210.51,39.44239075]
[1733856077678,20.0,210.66,210.51,0.71220562]
[1733856077896,23.776884,210.69,210.53,38.73018513]
[1733856078084,30.0,210.83,210.59,38.73018513]
[1733856078296,30.0,210.83,210.63,38.73018513]
[1733856078297,6.06003597,210.83,210.63,38.73018513]
[1733856078519,3.69052003,210.8,210.64,0.71181666]
[1733856078842,0.8760253,210.79,210.71,38.73018513]
[1733856079012,0.8760253,210.79,210.72,0.7115322]
[1733856079186,0.8760253,210.79,210.61,38.73018513]
[1733856079514,2.77537269,210.79,210.62,23.776884]
[1733856079682,0.8760253,210.79,210.62,23.776884]
[1733856080084,20.8760253,210.79,210.62,23.776884]
[1733856080294,20.8760253,210.79,210.6,24.027864]
[1733856080506,20.0,210.75,210.58,10.2707]
[1733856080685,20.0,210.75,210.59,0.71198208]
[1733856081516,20.0,210.75,210.6,38.73018513]
[1733856081691,1.91443067,210.79,210.61,39.44210179]
[1733856081692,21.91443067,210.79,210.61,39.44210179]
[1733856081904,20.0,210.79,210.62,23.776884]
[1733856082292,7.95687037,210.82,210.63,0.71186092]
[1733856082493,7.95687037,210.82,210.64,38.73018513]
[1733856082801,7.95687037,210.82,210.65,0.71175991]
[1733856083213,7.95687037,210.82,210.62,23.776884]
[1733856083408,5.22546314,210.82,210.61,23.902374]
[1733856083607,20.0,210.79,210.61,24.61426802]
[1733856083922,20.0,210.79,210.62,38.73018513]
[1733856084098,20.0,210.79,210.63,0.71187357]
[1733856084491,20.0,210.79,210.64,0.12549]
[1733856084691,20.0,210.79,210.65,39.44197472]
[1733856085093,20.0,210.79,210.65,0.71178959]
[1733856085404,5.22546314,210.82,210.65,0.71178959]
[1733856085806,24.027864,210.81,210.59,38.85567513]
[1733856086019,25.54998314,210.81,210.59,38.85567513]
[1733856086225,3.32862874,210.8,210.59,0.12549]
[1733856086440,3.32862874,210.8,210.59,38.85567513]
[1733856086617,20.0,210.78,210.6,0.71194234]
[1733856086813,20.0,210.78,210.61,0.12549]
[1733856087012,20.0,210.79,210.62,0.71194577]
[1733856087212,20.0,210.79,210.62,39.4421309]
[1733856088528,20.0,210.79,210.62,0.71194577]
[1733856088730,20.0,210.78,210.62,0.71194577]
[1733856088912,20.0,210.78,210.59,38.73018513]
[1733856089115,24.85074788,210.79,210.6,39.44217387]
[1733856089320,4.85074788,210.79,210.63,38.73018513]
[1733856089526,21.91897842,210.84,210.65,0.12549]
[1733856089732,21.91897842,210.84,210.62,0.25098]
[1733856089733,1.91897842,210.84,210.67,38.73018513]
[1733856090089,4.85074788,210.86,210.69,38.73018513]